bitfinex/quotes_ETHUSD_20230903
["timestamp","ask_amount","ask_price","bid_price","bid_amount"]
[1693775237821,3.9180187,1643.5,1643.3,1.0574946]
[1693775238552,3.9180187,1643.5,1643.4,0.0126113]
[1693775239613,3.9180187,1643.5,1643.4,1.05740844]
[1693775239820,2.89020998,1643.6,1643.3,0.63391387]
[1693775239821,0.49760998,1643.6,1643.3,0.63391387]
[1693775240019,5.4165,1643.7,1643.3,0.63391387]
[1693775242761,5.4165,1643.7,1643.4,0.01211154]
[1693775243540,5.4165,1643.7,1643.3,0.63391387]
[1693775243740,5.4165,1643.7,1643.3,1.58478467]
[1693775244330,5.4165,1643.7,1643.3,2.64216608]
[1693775244531,5.4165,1643.7,1643.4,0.01211154]
[1693775247475,9.33094,1643.7,1643.4,0.64602541]
[1693775247680,1.544,1643.6,1643.4,0.01211154]
[1693775249168,3.3681,1643.6,1643.4,0.01211154]
[1693775252594,7.43553866,1643.7,1643.4,0.01211154]
[1693775253252,7.43553866,1643.7,1643.4,0.64602541]
[1693775253452,7.43553866,1643.7,1643.5,1.05738437]
[1693775254751,7.43553866,1643.7,1643.4,0.63391387]
[1693775255588,7.43553866,1643.7,1643.5,0.01375702]
[1693775257357,8.35921253,1643.7,1643.5,0.01375702]
[1693775257558,8.35921253,1643.7,1643.3,1.58478467]
[1693775257859,7.43553866,1643.7,1643.3,1.69130597]
[1693775258553,7.43553866,1643.7,1643.4,0.01376464]
[1693775262292,7.43553866,1643.7,1643.2,2.14244931]
[1693775262479,7.43553866,1643.7,1643.3,1.05739003]
[1693775262683,7.43553866,1643.7,1643.5,0.01322761]
[1693775262854,8.35921253,1643.7,1643.5,0.01322761]
[1693775263065,1.544,1643.6,1643.5,0.01322761]
[1693775263393,9.4272,1643.6,1643.5,0.01322761]
[1693775263577,12.4272,1643.6,1643.1,0.004743]
[1693775263778,3.8085,1643.5,1643.1,0.004743]
[1693775263984,5.27767,1643.5,1643.1,0.004743]
[1693775264186,1.799,1643.4,1643.1,0.004743]
[1693775264692,1.799,1643.4,1643.2,0.01325048]
[1693775265693,1.799,1643.4,1643.1,0.004743]
[1693775266683,1.799,1643.4,1643.2,0.01278248]
[1693775267470,5.27767,1643.5,1643.2,0.01278248]
[1693775267471,2.2645,1643.5,1643.2,0.01278248]
[1693775267689,5.2645,1643.5,1643.1,0.9556138]
[1693775268694,5.2645,1643.5,1643.2,0.01278248]
[1693775269595,5.2645,1643.5,1643.1,0.9556138]
[1693775269959,5.2645,1643.5,1643.1,0.004743]
[1693775270663,5.2645,1643.5,1643.2,0.01277997]
[1693775271275,5.2645,1643.5,1643.3,1.05745342]
[1693775271476,6.14083,1643.5,1643.3,1.05745342]
[1693775271792,7.68483,1643.5,1643.4,0.01276598]
[1693775272674,7.68483,1643.5,1643.1,1.59159703]
[1693775273712,7.68483,1643.5,1643.2,0.01277371]
[1693775274194,7.68483,1643.5,1643.3,1.05745652]
[1693775274398,0.768483,1643.4,1643.3,1.05745652]
[1693775275096,5.2645,1643.5,1643.3,1.05745652]
[1693775275302,5.2645,1643.5,1643.2,0.63598323]
[1693775276681,5.2645,1643.5,1643.2,0.63593087]
[1693775278619,5.2645,1643.5,1643.3,0.01277235]
[1693775281787,5.75625076,1643.5,1643.3,0.01277235]
[1693775281991,6.68175584,1643.5,1643.3,0.01277235]
[1693775282618,6.68175584,1643.5,1643.2,0.63593087]
[1693775283621,6.68175584,1643.5,1643.3,0.01277235]
[1693775284621,6.68175584,1643.5,1643.2,0.63593087]
[1693775285719,6.68175584,1643.5,1643.3,0.01277235]
[1693775286094,3.68175584,1643.5,1643.3,0.01277235]
[1693775286586,3.68175584,1643.5,1643.2,0.63593087]
[1693775287528,3.68175584,1643.5,1643.2,1.58982718]
[1693775287732,3.68175584,1643.5,1643.3,0.01277235]
[1693775288595,3.68175584,1643.5,1643.2,1.58982718]
[1693775289515,3.68175584,1643.5,1643.3,1.0574564]
[1693775289715,3.68175584,1643.5,1643.3,0.01277235]
[1693775293247,3.86535845,1643.5,1643.3,0.01277235]
[1693775293649,0.38653585,1643.4,1643.3,0.01277235]
[1693775293840,2.93985337,1643.5,1643.3,0.64917846]
[1693775294020,2.93985337,1643.5,1643.4,1.05745753]
[1693775294721,2.93985337,1643.5,1643.3,0.63640611]
[1693775295617,2.93985337,1643.5,1643.4,0.01276473]
[1693775296444,2.93985337,1643.5,1643.4,1.07022226]
[1693775300948,0.49175076,1643.5,1643.4,1.07022226]
[1693775301155,1.9548,1643.6,1643.4,1.07022226]
[1693775301312,1.9548,1643.6,1643.4,0.01276473]
[1693775301847,1.9548,1643.6,1643.3,0.63640611]
[1693775302050,1.9548,1643.6,1643.3,1.69385508]
[1693775302544,1.9548,1643.6,1643.4,0.01276473]
[1693775303530,5.36139133,1643.7,1643.3,1.59101527]
[1693775303738,7.22119133,1643.7,1643.3,2.64840031]
[1693775304135,7.22119133,1643.7,1643.3,1.69379115]
[1693775304445,7.22119133,1643.7,1643.4,1.05738504]
[1693775304650,7.22119133,1643.7,1643.4,0.01276473]
[1693775309665,7.22119133,1643.7,1643.3,0.63640611]
[1693775309965,7.22119133,1643.7,1643.3,1.6937869]
[1693775310161,8.85165846,1643.7,1643.3,1.6937869]
[1693775310364,1.544,1643.6,1643.2,0.63640611]
[1693775310863,8.85165846,1643.7,1643.4,0.01276473]
[1693775311553,8.85165846,1643.7,1643.3,0.63640611]
[1693775312667,8.85165846,1643.7,1643.4,0.01431374]
[1693775312856,0.88516585,1643.6,1643.4,0.01431374]
[1693775313057,8.85165846,1643.7,1643.4,0.01431374]
[1693775313568,8.85165846,1643.7,1643.3,0.63640611]
[1693775313954,14.93551846,1643.7,1643.3,0.63640611]
[1693775314159,1.544,1643.6,1643.2,0.63640611]
[1693775314336,1.544,1643.5,1643.2,0.63640611]
[1693775314535,7.62847,1643.6,1643.3,0.01432136]
[1693775314756,5.161047,1643.5,1643.3,0.01432136]
[1693775315531,5.161047,1643.5,1643.2,0.63640611]
[1693775316569,5.161047,1643.5,1643.3,0.01432136]
[1693775318643,5.161047,1643.5,1643.2,0.63640611]
[1693775319672,5.161047,1643.5,1643.3,0.01432136]
[1693775319873,0.5161047,1643.4,1643.3,0.01432136]
[1693775320774,0.5161047,1643.4,1643.3,1.07178071]
[1693775323476,4.3982,1643.5,1643.3,1.07178071]
[1693775323676,4.3982,1643.5,1643.3,0.01432136]
[1693775323875,4.58195846,1643.7,1643.3,0.65072747]
[1693775324081,5.26629133,1643.7,1643.4,1.05740978]
[1693775324580,5.26629133,1643.7,1643.5,0.01430611]
[1693775325556,5.26629133,1643.7,1643.3,0.63640611]
[1693775326569,5.26629133,1643.7,1643.4,0.01431374]
[1693775326945,7.23279133,1643.7,1643.4,0.01431374]
[1693775327445,8.25607046,1643.7,1643.4,0.01431374]
[1693775327744,8.25607046,1643.7,1643.3,0.63640611]
[1693775327945,8.25607046,1643.7,1643.3,1.69381549]
[1693775328680,8.25607046,1643.7,1643.4,0.01431374]
[1693775329679,8.25607046,1643.7,1643.3,0.63640611]
[1693775329884,8.25607046,1643.7,1643.3,1.69381594]
[1693775330704,8.25607046,1643.7,1643.4,0.01431374]
[1693775330995,0.82560705,1643.6,1643.4,0.01431374]
[1693775331596,0.82560705,1643.6,1643.3,0.63640611]
[1693775331766,8.25607046,1643.7,1643.3,1.69381523]
[1693775332599,8.25607046,1643.7,1643.4,0.01431374]
[1693775333599,8.25607046,1643.7,1643.3,0.63640611]
[1693775333788,8.25607046,1643.7,1643.3,1.69381209]
[1693775334598,8.25607046,1643.7,1643.4,0.01431374]
[1693775334763,0.82560705,1643.6,1643.4,0.01431374]
[1693775335604,0.82560705,1643.6,1643.3,0.63640611]
[1693775335800,0.82560705,1643.6,1643.3,1.69381234]
[1693775336599,0.82560705,1643.6,1643.4,0.01431374]
[1693775337602,0.82560705,1643.6,1643.3,0.63640611]
[1693775337803,0.82560705,1643.6,1643.3,1.69381173]
[1693775338612,0.82560705,1643.6,1643.4,0.01431374]
[1693775339578,0.82560705,1643.6,1643.3,0.63640611]
[1693775339904,0.82560705,1643.6,1643.3,1.69381121]
[1693775340294,7.23279133,1643.7,1643.3,1.69381121]
[1693775340510,0.47503866,1643.7,1643.4,3.08185404]
[1693775340674,30.41,1644.0,1643.6,1.544]
[1693775340875,2.2854,1644.3,1643.7,4.77566525]
[1693775341106,2.2854,1644.3,1643.8,1.0574051]
[1693775341303,30.41,1644.4,1643.9,3.08185404]
[1693775341502,2.2854,1644.6,1644.0,1.0574051]
[1693775341718,3.19638701,1644.6,1644.0,1.0574051]
[1693775342421,3.19638701,1644.6,1643.9,4.64012967]
[1693775342983,3.69370246,1644.6,1643.9,4.64012967]
[1693775343644,3.87836953,1644.6,1643.9,4.64012967]
[1693775345512,3.87836953,1644.6,1644.0,1.05698105]
[1693775345739,3.87836953,1644.6,1643.9,4.64012967]
[1693775345913,3.87836953,1644.6,1644.0,1.544]
[1693775346651,3.87836953,1644.6,1644.1,0.0142528]
[1693775349315,2.78271545,1644.6,1644.1,1.5582528]
[1693775349512,0.49731545,1644.6,1644.2,1.544]
[1693775349745,3.0,1644.6,1644.2,1.544]
[1693775350414,1.02695635,1644.7,1644.2,1.544]
[1693775350415,4.02695635,1644.7,1644.2,1.544]
[1693775350654,4.02695635,1644.7,1644.1,5.26226015]
[1693775350816,4.02695635,1644.7,1644.2,1.0568339]
[1693775351153,4.52318568,1644.7,1644.2,1.0568339]
[1693775351929,3.59722933,1644.7,1644.3,4.62585404]
[1693775352131,0.59722933,1644.7,1644.4,2.60077678]
[1693775352352,0.59722933,1644.7,1644.4,4.62585404]
[1693775352536,0.101,1644.7,1644.5,1.55820961]
[1693775352733,0.101,1644.8,1644.5,1.55820961]
[1693775354357,0.101,1644.8,1644.6,3.08185404]
[1693775354753,0.101,1644.8,1644.6,3.09604992]
[1693775355061,0.101,1644.8,1644.6,0.01419588]
[1693775355358,0.48803227,1644.9,1644.6,3.09604992]
[1693775355664,3.0,1645.1,1644.6,3.09604992]
[1693775356764,3.0,1645.1,1644.7,1.05662611]
[1693775357577,3.0,1645.1,1644.7,4.13848015]
[1693775357762,3.0,1645.1,1644.7,3.08185404]
[1693775358348,3.49191158,1645.1,1644.7,3.08185404]
[1693775359173,3.49191158,1645.1,1644.5,3.13501527]
[1693775359371,3.49191158,1645.1,1644.6,1.05665351]
[1693775359571,3.49191158,1645.1,1644.6,1.07084939]
[1693775359745,3.49191158,1645.1,1644.6,0.01419588]
[1693775365882,5.03591158,1645.1,1644.6,0.01419588]
[1693775375191,3.49191158,1645.1,1644.6,0.01419588]
[1693775377297,3.49191158,1645.1,1644.6,1.70727063]
[1693775377497,3.49191158,1645.1,1644.7,1.05666864]
[1693775379505,5.03591158,1645.1,1644.7,1.05666864]
[1693775381306,5.03591158,1645.1,1644.8,1.05666864]
[1693775381469,5.03591158,1645.1,1644.7,1.69307475]
[1693775383076,5.03591158,1645.1,1644.8,1.05666864]
[1693775383404,3.49191158,1645.1,1644.9,1.05666864]
[1693775383591,3.49191158,1645.1,1644.8,0.63640611]
[1693775385007,3.49191158,1645.1,1644.8,1.69307821]
[1693775385375,3.49191158,1645.1,1644.9,0.63640611]
[1693775385806,3.49191158,1645.1,1644.9,1.69307821]
[1693775386520,3.49191158,1645.1,1645.0,1.69307821]
[1693775390829,3.49191158,1645.1,1645.0,0.63640611]
[1693775391020,3.49191158,1645.1,1645.0,1.69307821]
[1693775391620,3.49191158,1645.1,1645.0,0.63640611]
[1693775391923,3.49191158,1645.1,1645.0,1.69307821]
[1693775392214,3.49191158,1645.1,1645.0,1.6902407]
[1693775392589,3.49191158,1645.1,1645.0,0.63361181]
[1693775393215,3.49191158,1645.1,1645.0,1.05662889]
[1693775393408,3.49191158,1645.1,1644.9,0.63361181]
[1693775393604,3.49191158,1645.1,1644.9,1.58402953]
[1693775394594,3.49191158,1645.1,1645.0,1.6902407]
[1693775394790,3.49191158,1645.1,1645.0,0.63361181]
[1693775395191,3.49191158,1645.1,1645.0,1.05662889]
[1693775395407,3.49191158,1645.1,1644.9,0.63361181]
[1693775395804,3.49191158,1645.1,1644.9,1.58402953]
[1693775396300,3.49191158,1645.1,1645.0,1.05662889]
[1693775396504,3.49191158,1645.1,1644.9,0.63361181]
[1693775397322,3.49191158,1645.1,1644.8,0.63361181]
[1693775397500,3.49191158,1645.1,1644.8,1.69024672]
[1693775398198,3.49191158,1645.1,1644.7,2.23451181]
[1693775398498,3.49191158,1645.1,1644.8,1.05663523]
[1693775399197,3.49191158,1645.1,1644.7,4.68275404]
[1693775401617,3.49191158,1645.1,1644.7,3.08185404]
[1693775436960,0.49191158,1645.1,1644.7,3.08185404]
[1693775437162,6.95607673,1645.2,1644.7,3.08185404]
[1693775438858,6.95607673,1645.2,1644.8,3.08185404]
[1693775439249,7.44274375,1645.2,1644.8,3.08185404]
[1693775442784,5.89874375,1645.2,1644.8,3.08185404]
[1693775442990,7.44274375,1645.2,1644.8,3.08185404]
[1693775443901,7.26349268,1645.2,1644.8,3.08185404]
[1693775479349,5.71949268,1645.2,1644.8,3.08185404]
[1693775480031,5.71949268,1645.2,1644.9,0.2773705]
[1693775480666,5.71949268,1645.2,1645.0,0.02008406]
[1693775481863,5.71949268,1645.2,1644.8,3.08185404]
[1693775482239,5.71949268,1645.2,1645.1,0.27700804]
[1693775482430,3.82689268,1645.2,1644.8,3.08185404]
[1693775482635,5.63209268,1645.2,1645.1,0.02007629]
[1693775483740,5.63209268,1645.2,1644.8,3.08185404]
[1693775483938,1.50309268,1645.2,1644.9,1.69148502]
[1693775484174,1.50309268,1645.2,1644.9,5.05070956]
[1693775484349,1.50309268,1645.2,1645.0,1.0564085]
[1693775484669,1.50309268,1645.2,1645.1,0.02007629]
[1693775485685,1.50309268,1645.2,1644.9,3.99430106]
[1693775485986,1.50309268,1645.2,1645.0,1.05633288]
[1693775486667,1.50309268,1645.2,1645.1,0.02007042]
[1693775487685,1.50309268,1645.2,1644.9,3.99430106]
[1693775487839,1.50309268,1645.2,1645.0,1.05632602]
[1693775488293,1.50309268,1645.2,1644.9,3.35922454]
[1693775488509,1.50309268,1645.2,1645.0,1.05632461]
[1693775488779,1.50309268,1645.2,1645.0,1.07640152]
[1693775488980,1.50309268,1645.2,1645.0,0.02007691]
[1693775489742,1.50309268,1645.2,1645.1,3.08185404]
[1693775489987,1.50309268,1645.2,1645.1,4.13809677]
[1693775490198,0.101,1645.2,1645.1,4.13809677]
[1693775490673,0.101,1645.2,1645.1,4.15816592]
[1693775491858,0.101,1645.2,1645.1,4.43391033]
[1693775492259,0.101,1645.2,1645.1,4.43388479]
[1693775492988,0.101,1645.2,1645.1,5.97788479]
[1693775496594,1.8755,1645.6,1645.1,5.97788479]
[1693775496742,1.8755,1645.6,1645.1,4.9216676]
[1693775496941,1.3755,1645.6,1645.1,4.9216676]
[1693775497367,1.3755,1645.6,1645.1,6.5497676]
[1693775500999,1.3755,1645.6,1645.2,1.05617957]
[1693775501196,1.3755,1645.6,1645.3,3.08185404]
[1693775501197,1.3255,1645.6,1645.3,3.08185404]
[1693775501697,1.3255,1645.6,1645.4,0.02127451]
[1693775502773,1.3255,1645.6,1645.3,3.08185404]
[1693775502973,1.3255,1645.6,1645.3,2.98185404]
[1693775505297,1.2755,1645.6,1645.3,2.98185404]
[1693775506609,1.2755,1645.6,1645.4,0.27476873]
[1693775506791,1.2755,1645.6,1645.4,0.29604324]
[1693775507111,1.0955,1645.6,1645.4,0.02127451]
[1693775507692,2.09427181,1645.5,1645.1,2.58507652]
[1693775507918,2.09427181,1645.5,1645.2,4.13806199]
[1693775507919,2.81857181,1645.5,1645.2,4.13806199]
[1693775508223,2.81857181,1645.5,1645.2,3.08185404]
[1693775508516,2.2683,1645.5,1645.2,3.08185404]
[1693775508816,2.2683,1645.5,1645.3,1.07664045]
[1693775508986,2.2683,1645.5,1645.3,0.02047186]
[1693775512119,2.2183,1645.5,1645.3,0.02047186]
[1693775520327,2.2183,1645.5,1645.3,3.1023259]
[1693775520532,1.0955,1645.6,1645.4,1.05613367]
[1693775520733,1.0955,1645.6,1645.4,1.07659777]
[1693775520911,1.0955,1645.6,1645.4,0.0204641]
[1693775521628,1.0955,1645.6,1645.3,3.71693056]
[1693775521806,1.0955,1645.6,1645.4,1.05610052]
[1693775522011,1.0955,1645.6,1645.4,1.31378586]
[1693775522214,1.0955,1645.6,1645.4,0.25768534]
[1693775522533,30.41,1645.8,1645.5,3.71693056]
[1693775522745,2.3472,1645.9,1645.6,1.68967589]
[1693775522946,2.3472,1645.9,1645.6,0.63359758]
[1693775523135,2.3472,1645.9,1645.7,0.25667669]
[1693775523501,2.3472,1645.9,1645.6,0.63359758]
[1693775523701,2.3472,1645.9,1645.8,0.02038838]
[1693775524838,2.3472,1645.9,1645.6,0.63359758]
[1693775525350,2.3472,1645.9,1645.7,0.284012]
[1693775525725,2.3472,1645.9,1645.7,0.30440814]
[1693775525926,2.3472,1645.9,1645.7,0.02039614]
[1693775526759,1.7393,1646.0,1645.7,3.08185404]
[1693775526912,2.296,1646.0,1645.8,1.05590544]
[1693775527933,2.296,1646.0,1645.9,0.02038062]
[1693775528135,2.296,1646.0,1645.9,1.07623838]
[1693775530065,0.101,1646.1,1645.9,0.6532161]
[1693775530358,0.101,1646.1,1645.9,1.70907386]
[1693775530558,0.101,1646.1,1646.0,1.05585776]
[1693775530758,0.101,1646.1,1646.0,1.05582386]
[1693775530962,0.101,1646.1,1645.9,0.02038062]
[1693775531167,0.101,1646.1,1646.0,1.05581416]
[1693775531637,0.101,1646.1,1646.0,0.02036138]
[1693775532025,0.101,1646.1,1646.0,1.07618305]
[1693775536468,0.101,1646.1,1646.0,0.02036138]
[1693775537048,0.101,1646.1,1646.0,0.30267527]
[1693775546854,0.101,1646.1,1646.0,1.3584203]
[1693775548161,0.101,1646.1,1646.0,4.44027434]
[1693775549464,0.101,1646.1,1646.0,5.07310982]
[1693775549874,0.101,1646.3,1646.0,5.07310982]
[1693775550076,0.101,1646.3,1646.1,4.13759907]
[1693775550385,0.101,1646.3,1646.1,3.08185404]
[1693775550753,0.101,1646.3,1646.2,0.02038761]
[1693775550954,0.101,1646.3,1646.2,3.10224165]
[1693775551754,0.101,1646.3,1646.2,3.38386249]
[1693775553162,0.101,1646.3,1646.2,0.30200845]
[1693775553775,0.101,1646.3,1646.2,4.43950821]
[1693775554380,0.101,1646.3,1646.2,7.56559691]
[1693775554564,0.101,1646.3,1646.2,8.19843239]
[1693775554765,0.101,1646.3,1646.2,5.70517917]
[1693775554970,0.101,1646.3,1646.2,6.65129374]
[1693775555171,0.101,1646.3,1646.2,5.70517917]
[1693775555488,0.101,1646.3,1646.2,6.65110694]
[1693775556489,0.101,1646.3,1646.2,5.70517917]
[1693775557879,0.101,1646.3,1646.2,7.28726787]
[1693775558891,0.115,1646.5,1646.3,0.202]
[1693775559093,0.115,1646.5,1646.4,3.71217946]
[1693775559286,0.115,1646.5,1646.4,4.76782518]
[1693775559483,0.115,1646.5,1646.4,5.04831888]
[1693775559672,0.115,1646.5,1646.4,5.06987502]
[1693775559877,0.115,1646.5,1646.4,6.01540289]
[1693775560762,0.115,1646.5,1646.4,6.0216383]
[1693775561191,0.115,1646.5,1646.4,3.38390388]
[1693775561508,0.115,1646.5,1646.4,4.4393616]
[1693775562575,1.94362095,1646.7,1646.4,4.4393616]
[1693775562772,1.94362095,1646.7,1646.6,2.20630518]
[1693775563097,1.94362095,1646.7,1646.6,2.20619286]
[1693775563298,1.94362095,1646.7,1646.6,2.31620354]
[1693775563723,1.94362095,1646.7,1646.6,2.33774417]
[1693775564369,3.48762095,1646.7,1646.6,2.33774417]
[1693775565289,3.48762095,1646.7,1646.6,3.91367645]
[1693775565685,1.94362095,1646.7,1646.6,2.33774417]
[1693775565886,1.94362095,1646.7,1646.6,3.91367645]
[1693775566292,1.94362095,1646.7,1646.6,2.33774417]
[1693775566802,1.94362095,1646.7,1646.6,3.91367645]
[1693775567005,1.94362095,1646.7,1646.6,4.19347733]
[1693775567211,1.94362095,1646.7,1646.6,2.61754505]
[1693775568505,1.94362095,1646.7,1646.6,2.93273151]
[1693775569778,3.4529,1646.8,1646.6,2.93273151]
[1693775569981,1.9089,1646.8,1646.7,2.31644481]
[1693775570178,3.4529,1646.8,1646.7,3.26229028]
[1693775570601,1.645,1646.8,1646.7,3.26229028]
[1693775570800,1.645,1646.8,1646.7,2.33797769]
[1693775571287,1.645,1646.8,1646.7,2.22842178]
[1693775571609,1.645,1646.8,1646.7,3.2838795]
[1693775571802,1.645,1646.8,1646.7,2.31644481]
[1693775572321,1.645,1646.8,1646.7,2.20698926]
[1693775572675,1.645,1646.8,1646.7,3.26244698]
[1693775573316,1.645,1646.8,1646.7,2.00145989]
[1693775575221,1.645,1646.8,1646.7,2.63215058]
[1693775575643,1.645,1646.8,1646.7,2.65368602]
[1693775576339,1.645,1646.8,1646.7,1.70768385]
[1693775578225,1.645,1646.8,1646.7,1.07699316]
[1693775580600,1.645,1646.8,1646.3,1.5207]
[1693775580601,27.36523655,1646.8,1646.2,1.57657324]
[1693775580801,1.544,1646.3,1646.1,1.16635401]
[1693775581018,1.544,1646.3,1646.0,1.26227709]
[1693775581019,2.38254833,1646.2,1646.0,1.26227709]
[1693775581217,9.00128642,1646.2,1645.8,2.31042305]
[1693775581526,0.90012864,1646.1,1645.8,1.95]
[1693775581742,6.82674506,1646.1,1645.8,1.95]
[1693775582715,1.544,1645.9,1645.8,1.95]
[1693775582914,6.12374476,1645.9,1645.8,1.95]
[1693775584446,4.544,1645.9,1645.8,1.95]
[1693775584600,6.50259017,1645.9,1645.8,1.95]
[1693775585970,13.05829017,1645.9,1645.2,1.89341564]
[1693775586291,13.05829017,1645.9,1645.2,4.97526968]
[1693775586399,13.05829017,1645.9,1645.3,0.23342756]
[1693775586602,13.05829017,1645.9,1645.4,0.01285739]
[1693775586835,1.30582902,1645.8,1645.4,0.01285739]
[1693775587037,4.30582902,1645.8,1645.4,0.01285739]
[1693775587544,1.544,1645.5,1645.4,0.01285739]
[1693775587838,1.544,1645.5,1645.4,1.57753186]
[1693775588036,3.088,1645.5,1645.3,1.57753186]
[1693775588242,1.8528,1645.4,1645.2,1.57753186]
[1693775588542,1.544,1645.3,1645.1,1.57753186]
[1693775588699,1.544,1645.2,1645.1,1.57753186]
[1693775588903,16.05109,1645.7,1645.2,0.14579425]
[1693775589104,1.544,1645.3,1645.2,1.4078931]
[1693775589732,1.544,1645.3,1645.2,1.61811628]
[1693775589905,0.41746099,1645.3,1645.2,1.61811628]
[1693775592557,0.41746099,1645.3,1645.1,1.57753186]
[1693775592735,0.41746099,1645.3,1644.9,1.99341564]
[1693775592736,12.15582,1645.3,1645.2,0.83055778]
[1693775592956,2.51142436,1645.3,1645.2,0.19976862]
[1693775593156,3.0,1645.3,1645.1,0.63078916]
[1693775593320,3.0,1645.2,1645.1,0.63078916]
[1693775593526,9.07828,1645.2,1645.1,0.63078916]
[1693775594342,10.62228,1645.2,1645.1,0.63078916]
[1693775596587,10.62228,1645.2,1645.0,0.63078916]
[1693775596784,12.292315,1645.2,1645.0,0.63078916]
[1693775597893,12.292315,1645.2,1645.0,0.58078916]
[1693775599791,12.292315,1645.2,1644.9,0.1]
[1693775600573,12.292315,1645.2,1645.0,1.05633604]
[1693775602270,1.544,1645.1,1645.0,1.05633604]
[1693775602764,0.91019948,1645.1,1645.0,1.05633604]
[1693775603673,0.91019948,1645.1,1644.9,0.1]
[1693775603869,10.748315,1645.2,1645.1,0.14613707]
[1693775604070,12.292315,1645.2,1645.1,0.14613707]
[1693775605704,12.77749833,1645.2,1645.1,0.14613707]
[1693775609312,5.02918333,1645.2,1645.1,0.14613707]
[1693775609716,5.02918333,1645.2,1644.9,0.1]
[1693775609908,3.90244768,1645.2,1644.9,0.1]
[1693775610428,1.544,1645.0,1644.9,0.1]
[1693775610709,1.544,1645.0,1644.9,1.15635868]
[1693775611085,1.544,1645.0,1644.9,1.33567336]
[1693775611806,1.544,1645.0,1644.9,0.27931468]
[1693775612683,1.544,1645.0,1644.9,0.1]
[1693775614278,3.088,1645.0,1644.9,0.1]
[1693775614681,10.083698,1645.0,1644.9,0.1]
[1693775614879,25.78580609,1645.0,1644.9,0.1]
[1693775616009,22.78864013,1645.0,1644.9,0.1]
[1693775616214,23.26864013,1645.0,1644.9,0.1]
[1693775617581,29.34766013,1645.0,1644.9,0.1]
[1693775618217,23.26864013,1645.0,1644.9,0.1]
[1693775618628,29.34766013,1645.0,1644.9,0.1]
[1693775620814,3.54406809,1644.9,1644.5,0.62794252]
[1693775620993,3.54406809,1644.9,1644.5,1.05665861]
[1693775620994,1.544,1644.6,1644.5,1.05665861]
[1693775621194,4.39731695,1644.6,1644.4,1.57079234]
[1693775621523,15.01460695,1644.6,1644.5,1.05665861]
[1693775621694,18.66808064,1644.6,1644.4,1.68460113]
[1693775621895,1.544,1644.5,1644.4,1.57079234]
[1693775622206,7.62487,1644.5,1644.4,1.68462586]
[1693775622401,7.62487,1644.5,1644.4,0.62794252]
[1693775622582,1.544,1644.5,1644.4,0.62794252]
[1693775623589,1.544,1644.5,1644.4,1.57079234]
[1693775623797,1.544,1644.5,1644.4,1.99953316]
[1693775624186,1.544,1644.5,1644.4,0.94284982]
[1693775624719,1.544,1644.5,1644.4,1.99953316]
[1693775624924,1.544,1644.5,1644.4,2.3181438]
[1693775625109,3.41079806,1644.5,1644.4,3.26514616]
[1693775625290,6.41079806,1644.5,1644.4,2.20846282]
[1693775625897,6.41079806,1644.5,1644.4,3.89567566]
[1693775626230,6.41079806,1644.5,1644.4,2.83899232]
[1693775627020,6.41079806,1644.5,1644.4,2.00456861]
[1693775627021,20.11653806,1644.5,1644.4,2.00456861]
[1693775627224,26.19740806,1644.5,1644.4,2.00456861]
[1693775627385,26.19740806,1644.5,1644.4,2.63654007]
[1693775628383,26.19740806,1644.5,1644.4,1.57985673]
[1693775628605,26.19740806,1644.5,1644.4,2.00456861]
[1693775628833,26.19740806,1644.5,1644.4,1.57975855]
[1693775629819,18.98928122,1644.5,1644.4,1.57972382]
[1693775630125,18.98928122,1644.5,1644.4,2.00456861]
[1693775630327,18.98928122,1644.5,1644.4,0.94788527]
[1693775630528,18.98928122,1644.5,1644.4,1.57972042]
[1693775630823,18.98928122,1644.5,1644.4,2.00456861]
[1693775631022,18.98928122,1644.5,1644.4,0.94788527]
[1693775631227,25.07015122,1644.5,1644.4,0.94788527]
[1693775631628,31.15200526,1644.5,1644.3,1.26146046]
[1693775631828,31.15200526,1644.5,1644.4,1.05668334]
[1693775631829,31.27951394,1644.5,1644.4,1.05668334]
[1693775632028,33.4837404,1644.5,1644.4,1.05668334]
[1693775632197,33.4837404,1644.5,1644.3,0.94739072]
[1693775632529,5.10585404,1644.4,1644.3,0.94739072]
[1693775632699,14.73166588,1644.4,1644.3,0.94739072]
[1693775632900,23.85326192,1644.4,1644.3,1.05668334]
[1693775633126,23.85326192,1644.4,1644.2,3.26553452]
[1693775633336,29.93485192,1644.4,1644.3,2.00407406]
[1693775633693,29.93485192,1644.4,1644.3,0.94739072]
[1693775635205,29.93485192,1644.4,1644.2,0.94830545]
[1693775635206,3.0,1644.3,1644.2,0.94830545]
[1693775635410,12.16396,1644.2,1644.1,0.1]
[1693775635636,18.72581404,1644.2,1644.1,0.1]
[1693775635931,9.08198,1644.2,1644.1,0.1]
[1693775637640,4.544,1644.2,1644.1,0.1]
[1693775637808,1.544,1644.2,1644.1,1.04851551]
[1693775638144,1.544,1644.2,1644.1,1.23776238]
[1693775642746,0.9098577,1644.2,1644.1,1.23776238]
[1693775643341,0.9098577,1644.2,1644.1,1.04851551]
[1693775644321,2.51719047,1644.2,1644.1,1.04851551]
[1693775644624,5.51719047,1644.2,1644.1,1.04851551]
[1693775644823,5.51719047,1644.2,1644.1,0.73171923]
[1693775644824,11.59917047,1644.2,1644.1,0.73171923]
[1693775645331,11.59917047,1644.2,1644.1,1.04851551]
[1693775646915,5.51719047,1644.2,1644.1,1.04851551]
[1693775647121,3.9098577,1644.2,1644.1,1.04851551]
[1693775647820,0.9098577,1644.2,1644.1,1.04851551]
[1693775648652,1.40044578,1644.2,1644.1,1.04851551]
[1693775649851,0.27307437,1644.2,1644.1,1.04851551]
[1693775650060,15.16362,1644.3,1644.1,1.04851551]
[1693775650259,20.64668396,1644.3,1644.2,0.63178901]
[1693775650471,22.67068396,1644.3,1644.2,0.63178901]
[1693775653848,23.16454418,1644.3,1644.2,0.63178901]
[1693775655637,23.16454418,1644.3,1644.2,1.68869671]
[1693775656084,23.16454418,1644.3,1644.2,0.63178901]
[1693775656289,23.16454418,1644.3,1644.2,1.68869671]
[1693775656995,23.16454418,1644.3,1644.2,0.63178901]
[1693775657283,17.08268418,1644.3,1644.2,1.68869671]
[1693775657439,17.08268418,1644.3,1644.2,2.00542321]
[1693775658071,17.08268418,1644.3,1644.2,1.68975685]
[1693775658674,17.08268418,1644.3,1644.2,2.63827236]
[1693775659475,17.08268418,1644.3,1644.2,2.00542321]